[Event "TOP 12F 2021"]
[Site "RENNES, France"]
[Date "2021.08.27"]
[Round "2.1"]
[White "Benmesbah, Natacha"]
[Black "Vega Gutierrez, Sabrina"]
[Result "1-0"]
[TimeControl "1H30 + 30 sec/coup"]
[WhiteElo "2239"]
[BlackElo "2392"]

1. e4 {[%clk 01:30:00]} {[%emt 00:00:59]} c5 {[%clk 01:30:40]} {[%emt
00:00:20]} 2. Nf3 {[%clk 01:30:13]} {[%emt 00:00:17]} e6 {[%clk 01:30:45]}
{[%emt 00:00:25]} 3. Qe2 {[%clk 01:28:10]} {[%emt 00:02:33]} Nc6 {[%clk
01:30:52]} {[%emt 00:00:23]} 4. g3 {[%clk 01:28:32]} {[%emt 00:00:09]} e5
{[%clk 01:28:04]} {[%emt 00:03:17]} 5. Bg2 {[%clk 01:24:17]} {[%emt 00:04:45]}
Nf6 {[%clk 01:28:22]} {[%emt 00:00:12]} 6. O-O {[%clk 01:19:42]} {[%emt
00:05:06]} Be7 {[%clk 01:28:41]} {[%emt 00:00:09]} 7. Na3 {[%clk 01:12:18]}
{[%emt 00:07:55]} d6 {[%clk 01:27:56]} {[%emt 00:01:15]} 8. c3 {[%clk
01:11:07]} {[%emt 00:01:42]} O-O {[%clk 01:27:52]} {[%emt 00:00:33]} 9. Rd1
{[%clk 01:07:52]} {[%emt 00:03:46]} Re8 {[%clk 01:27:36]} {[%emt 00:00:44]} 10.
d4 {[%clk 00:59:18]} {[%emt 00:09:05]} exd4 {[%clk 01:27:10]} {[%emt 00:00:55]}
11. cxd4 {[%clk 00:59:43]} {[%emt 00:00:06]} cxd4 {[%clk 01:24:30]} {[%emt
00:03:10]} 12. Nb5 {[%clk 00:55:56]} {[%emt 00:04:17]} d5 {[%clk 01:13:26]}
{[%emt 00:11:34]} 13. e5 {[%clk 00:46:20]} {[%emt 00:10:07]} Bc5 {[%clk
01:01:56]} {[%emt 00:11:59]} 14. Qc2 {[%clk 00:43:03]} {[%emt 00:03:48]} Ne4
{[%clk 00:57:16]} {[%emt 00:05:11]} 15. Nfxd4 {[%clk 00:36:25]} {[%emt
00:07:08]} Qb6 {[%clk 00:56:31]} {[%emt 00:01:14]} 16. Be3 {[%clk 00:29:54]}
{[%emt 00:07:02]} a6 {[%clk 00:51:44]} {[%emt 00:05:17]} 17. Bxe4 {[%clk
00:29:44]} {[%emt 00:00:40]} dxe4 {[%clk 00:52:02]} {[%emt 00:00:11]} 18. Nd6
{[%clk 00:27:51]} {[%emt 00:02:24]} Nxd4 {[%clk 00:38:05]} {[%emt 00:14:27]} 19.
Bxd4 {[%clk 00:27:34]} {[%emt 00:00:47]} Bxd4 {[%clk 00:38:25]} {[%emt
00:00:10]} 20. Nxe8 {[%clk 00:26:08]} {[%emt 00:01:56]} Bg4 {[%clk 00:36:12]}
{[%emt 00:02:42]} 21. Nd6 {[%clk 00:25:42]} {[%emt 00:00:56]} e3 {[%clk
00:22:47]} {[%emt 00:13:56]} 22. fxe3 {[%clk 00:10:56]} {[%emt 00:15:16]} Bxe3+
{[%clk 00:22:59]} {[%emt 00:00:17]} 23. Kg2 {[%clk 00:11:23]} {[%emt 00:00:04]}
Bxd1 {[%clk 00:23:07]} {[%emt 00:00:22]} 24. Rxd1 {[%clk 00:11:49]} {[%emt
00:00:04]} Bd4 {[%clk 00:22:55]} {[%emt 00:00:41]} 25. Qc4 {[%clk 00:11:19]}
{[%emt 00:01:00]} Bxb2 {[%clk 00:10:36]} {[%emt 00:12:49]} 26. Qxf7+ {[%clk
00:08:28]} {[%emt 00:03:22]} Kh8 {[%clk 00:11:04]} {[%emt 00:00:01]} 27. e6
{[%clk 00:08:02]} {[%emt 00:00:56]} Qc6+ {[%clk 00:08:27]} {[%emt 00:03:06]} 28.
Kh3 {[%clk 00:07:51]} {[%emt 00:00:42]} Bf6 {[%clk 00:08:48]} {[%emt 00:00:09]}
29. Qxb7 {[%clk 00:06:47]} {[%emt 00:01:35]} Qxb7 {[%clk 00:08:26]} {[%emt
00:00:51]} 30. Nxb7 {[%clk 00:07:13]} {[%emt 00:00:04]} Kg8 {[%clk 00:05:31]}
{[%emt 00:03:26]} 31. Rd7 {[%clk 00:04:33]} {[%emt 00:03:10]} Kf8 {[%clk
00:03:14]} {[%emt 00:02:46]} 32. a4 {[%clk 00:03:48]} {[%emt 00:01:15]} Be7
{[%clk 00:02:14]} {[%emt 00:01:31]} 33. Nd6 {[%clk 00:02:54]} {[%emt 00:01:24]}
Bxd6 {[%clk 00:01:50]} {[%emt 00:00:53]} 34. Rxd6 {[%clk 00:03:21]} {[%emt
00:00:04]} a5 {[%clk 00:02:04]} {[%emt 00:00:16]} 35. Rb6 {[%clk 00:02:30]}
{[%emt 00:01:21]} Ke7 {[%clk 00:01:02]} {[%emt 00:01:31]} 36. Kg4 {[%clk
00:01:36]} {[%emt 00:01:24]} Rc8 {[%clk 00:01:14]} {[%emt 00:00:18]} 37. Kf5
{[%clk 00:01:41]} {[%emt 00:00:26]} Rc5+ {[%clk 00:00:56]} {[%emt 00:00:47]} 38.
Ke4 {[%clk 00:02:07]} {[%emt 00:00:05]} Rc4+ {[%clk 00:00:52]} {[%emt
00:00:34]} 39. Kd5 {[%clk 00:02:32]} {[%emt 00:00:05]} Rxa4 {[%clk 00:01:13]}
{[%emt 00:00:08]} 40. Rb7+ {[%clk 00:02:48]} {[%emt 00:00:14]} Kf6 {[%clk
00:00:34]} {[%emt 00:01:10]} 41. Rf7+ {[%clk 00:03:04]} {[%emt 00:00:14]} Kg6
{[%clk 00:01:03]} 42. Rf2 {[%clk 00:03:09]} {[%emt 00:00:26]} Rb4 {[%clk
00:00:31]} {[%emt 00:01:02]} 43. e7 {[%clk 00:02:50]} {[%emt 00:00:48]} Rb8
{[%clk 00:00:50]} {[%emt 00:00:10]} 44. Rf8 {[%clk 00:03:04]} {[%emt 00:00:17]}
1-0

[Event "TOP 12F 2021"]
[Site "RENNES, France"]
[Date "2021.08.27"]
[Round "2.2"]
[White "Navrotescu, Andreea"]
[Black "Afraoui, Anaelle"]
[Result "1-0"]
[TimeControl "1H30 + 30 sec/coup"]
[WhiteElo "2249"]
[BlackElo "2118"]

1. c4 {[%clk 01:28:51]} {[%emt 00:02:08]} Nf6 {[%clk 01:30:52]} {[%emt
00:00:08]} 2. d4 {[%clk 01:29:07]} {[%emt 00:00:14]} g6 {[%clk 01:31:16]}
{[%emt 00:00:06]} 3. g3 {[%clk 01:29:32]} {[%emt 00:00:05]} Bg7 {[%clk
01:31:40]} {[%emt 00:00:05]} 4. Bg2 {[%clk 01:29:58]} {[%emt 00:00:05]} O-O
{[%clk 01:32:01]} {[%emt 00:00:09]} 5. Nf3 {[%clk 01:30:24]} {[%emt 00:00:03]}
d6 {[%clk 01:32:22]} {[%emt 00:00:09]} 6. O-O {[%clk 01:30:47]} {[%emt
00:00:07]} Nbd7 {[%clk 01:32:33]} {[%emt 00:00:20]} 7. Nc3 {[%clk 01:31:11]}
{[%emt 00:00:06]} c6 {[%clk 01:32:43]} {[%emt 00:00:20]} 8. e4 {[%clk
01:30:52]} {[%emt 00:00:49]} e5 {[%clk 01:33:01]} {[%emt 00:00:11]} 9. h3
{[%clk 01:31:02]} {[%emt 00:00:20]} Qb6 {[%clk 01:33:17]} {[%emt 00:00:14]} 10.
c5 {[%clk 01:31:03]} {[%emt 00:00:30]} dxc5 {[%clk 01:33:41]} {[%emt 00:00:06]}
11. dxe5 {[%clk 01:31:28]} {[%emt 00:00:04]} Ne8 {[%clk 01:34:05]} {[%emt
00:00:06]} 12. e6 {[%clk 01:31:47]} {[%emt 00:00:11]} fxe6 {[%clk 01:34:31]}
{[%emt 00:00:05]} 13. Ng5 {[%clk 01:32:08]} {[%emt 00:00:09]} Ne5 {[%clk
01:34:56]} {[%emt 00:00:05]} 14. f4 {[%clk 01:32:27]} {[%emt 00:00:11]} Nf7
{[%clk 01:35:21]} {[%emt 00:00:04]} 15. Nxf7 {[%clk 01:32:52]} {[%emt
00:00:06]} Bd4+ {[%clk 01:35:47]} {[%emt 00:00:03]} 16. Kh2 {[%clk 01:33:15]}
{[%emt 00:00:07]} Rxf7 {[%clk 01:36:13]} {[%emt 00:00:05]} 17. e5 {[%clk
01:33:34]} {[%emt 00:00:11]} Qc7 {[%clk 01:35:55]} {[%emt 00:00:47]} 18. Ne4
{[%clk 01:31:35]} {[%emt 00:02:29]} b6 {[%clk 01:35:07]} {[%emt 00:01:18]} 19.
Qg4 {[%clk 01:25:52]} {[%emt 00:06:12]} Ng7 {[%clk 01:28:38]} {[%emt 00:06:59]}
20. Nf6+ {[%clk 01:19:04]} {[%emt 00:07:18]} Kh8 {[%clk 01:28:51]} {[%emt
00:00:17]} 21. Be4 {[%clk 01:11:47]} {[%emt 00:07:46]} Nf5 {[%clk 01:17:49]}
{[%emt 00:11:33]} 22. Qf3 {[%clk 00:53:02]} {[%emt 00:19:15]} Ba6 {[%clk
01:04:09]} {[%emt 00:14:10]} 23. Rd1 {[%clk 00:52:25]} {[%emt 00:01:06]} Rc8
{[%clk 01:02:16]} {[%emt 00:02:23]} 24. h4 {[%clk 00:41:03]} {[%emt 00:11:53]}
Bc4 {[%clk 00:53:04]} {[%emt 00:09:42]} 25. Kh3 {[%clk 00:36:29]} {[%emt
00:05:04]} Bd5 {[%clk 00:41:16]} {[%emt 00:12:18]} 26. g4 {[%clk 00:36:39]}
{[%emt 00:00:20]} Ne7 {[%clk 00:40:02]} {[%emt 00:01:43]} 27. g5 {[%clk
00:27:19]} {[%emt 00:09:50]} Ng8 {[%clk 00:15:16]} {[%emt 00:25:16]} 28. Be3
{[%clk 00:21:20]} {[%emt 00:06:30]} Nxf6 {[%clk 00:09:25]} {[%emt 00:06:21]} 29.
gxf6 {[%clk 00:21:35]} {[%emt 00:00:15]} Bxb2 {[%clk 00:07:44]} {[%emt
00:02:11]} 30. Rab1 {[%clk 00:22:03]} {[%emt 00:00:02]} Bxe5 {[%clk 00:07:33]}
{[%emt 00:00:41]} 31. Bxd5 {[%clk 00:19:33]} {[%emt 00:03:01]} cxd5 {[%clk
00:07:29]} {[%emt 00:00:33]} 32. fxe5 {[%clk 00:19:53]} {[%emt 00:00:10]} Qxe5
{[%clk 00:07:26]} {[%emt 00:00:33]} 33. Bg5 {[%clk 00:18:21]} {[%emt 00:02:02]}
Qf5+ {[%clk 00:04:14]} {[%emt 00:03:42]} 34. Qxf5 {[%clk 00:16:41]} {[%emt
00:02:10]} gxf5 {[%clk 00:03:57]} {[%emt 00:00:46]} 35. Rb2 {[%clk 00:14:50]}
{[%emt 00:02:23]} h6 {[%clk 00:01:24]} {[%emt 00:03:03]} 36. Bf4 {[%clk
00:14:55]} {[%emt 00:00:24]} Kh7 {[%clk 00:01:18]} {[%emt 00:00:36]} 37. Be5
{[%clk 00:13:33]} {[%emt 00:01:52]} Rg8 {[%clk 00:01:25]} {[%emt 00:00:24]} 38.
Rg2 {[%clk 00:09:55]} {[%emt 00:04:07]} Rxg2 {[%clk 00:01:12]} {[%emt
00:00:44]} 39. Kxg2 {[%clk 00:10:24]} {[%emt 00:00:01]} b5 {[%clk 00:00:37]}
{[%emt 00:01:05]} 40. Rc1 {[%clk 00:09:21]} {[%emt 00:01:33]} c4 {[%clk
00:00:51]} {[%emt 00:00:16]} 41. Kf3 {[%clk 00:09:28]} {[%emt 00:00:23]} b4
{[%clk 00:00:53]} {[%emt 00:00:28]} 42. Ke3 {[%clk 00:07:29]} {[%emt 00:02:29]}
a5 {[%clk 00:00:35]} {[%emt 00:00:48]} 43. Kd4 {[%clk 00:07:12]} {[%emt
00:00:47]} Kg8 {[%clk 00:00:37]} {[%emt 00:00:27]} 44. Rg1+ {[%clk 00:05:24]}
{[%emt 00:02:18]} Kf8 {[%clk 00:00:36]} {[%emt 00:00:31]} 45. Bd6+ {[%clk
00:05:51]} {[%emt 00:00:04]} Ke8 {[%clk 00:00:52]} {[%emt 00:00:15]} 46. Ke5
{[%clk 00:06:20]} Kd7 {[%clk 00:00:44]} {[%emt 00:00:37]} 47. Rg7 {[%clk
00:06:38]} {[%emt 00:00:12]} 1-0

[Event "TOP 12F 2021"]
[Site "RENNES, France"]
[Date "2021.08.27"]
[Round "2.3"]
[White "Haussernot, Cecile"]
[Black "Bonvalot, Isabelle"]
[Result "1-0"]
[TimeControl "1H30 + 30 sec/coup"]
[WhiteElo "2171"]
[BlackElo "1831"]

1. d4 {[%clk 01:27:11]} {[%emt 00:03:48]} g6 {[%clk 01:30:53]} {[%emt
00:00:07]} 2. e4 {[%clk 01:27:03]} {[%emt 00:00:38]} Bg7 {[%clk 01:31:16]}
{[%emt 00:00:06]} 3. Nc3 {[%clk 01:27:25]} {[%emt 00:00:08]} d6 {[%clk
01:31:38]} {[%emt 00:00:08]} 4. Be3 {[%clk 01:27:29]} {[%emt 00:00:26]} c6
{[%clk 01:31:58]} {[%emt 00:00:10]} 5. Qd2 {[%clk 01:27:38]} {[%emt 00:00:21]}
b5 {[%clk 01:32:12]} {[%emt 00:00:16]} 6. a3 {[%clk 01:22:03]} {[%emt
00:06:06]} Nd7 {[%clk 01:30:00]} {[%emt 00:02:41]} 7. f4 {[%clk 01:06:39]}
{[%emt 00:15:54]} Ngf6 {[%clk 01:28:33]} {[%emt 00:01:58]} 8. Nf3 {[%clk
01:05:14]} {[%emt 00:01:54]} Nb6 {[%clk 01:23:57]} {[%emt 00:05:06]} 9. d5
{[%clk 00:48:54]} {[%emt 00:16:51]} Bd7 {[%clk 01:13:25]} {[%emt 00:11:02]} 10.
dxc6 {[%clk 00:47:06]} {[%emt 00:02:18]} Bxc6 {[%clk 01:13:41]} {[%emt
00:00:14]} 11. Nd4 {[%clk 00:46:51]} {[%emt 00:00:45]} Bxe4 {[%clk 01:06:45]}
{[%emt 00:07:26]} 12. Bxb5+ {[%clk 00:45:36]} {[%emt 00:01:45]} Nbd7 {[%clk
01:03:51]} {[%emt 00:03:24]} 13. O-O {[%clk 00:38:09]} {[%emt 00:07:57]} O-O
{[%clk 01:02:50]} {[%emt 00:01:31]} 14. Bc6 {[%clk 00:36:36]} {[%emt 00:02:03]}
Bxc6 {[%clk 01:01:18]} {[%emt 00:02:02]} 15. Nxc6 {[%clk 00:37:00]} {[%emt
00:00:06]} Qe8 {[%clk 01:00:41]} {[%emt 00:01:07]} 16. Bxa7 {[%clk 00:32:48]}
{[%emt 00:04:43]} Nc5 {[%clk 00:59:35]} {[%emt 00:01:36]} 17. Bxc5 {[%clk
00:27:54]} {[%emt 00:05:23]} dxc5 {[%clk 00:59:54]} {[%emt 00:00:12]} 18. Ne5
{[%clk 00:26:59]} {[%emt 00:01:25]} Rb8 {[%clk 00:56:51]} {[%emt 00:03:32]} 19.
Rab1 {[%clk 00:26:31]} {[%emt 00:00:58]} Qc8 {[%clk 00:56:26]} {[%emt
00:00:55]} 20. Rfe1 {[%clk 00:24:38]} {[%emt 00:02:23]} Rd8 {[%clk 00:51:01]}
{[%emt 00:05:55]} 21. Qe3 {[%clk 00:20:53]} {[%emt 00:04:15]} Rd4 {[%clk
00:47:01]} {[%emt 00:04:30]} 22. b4 {[%clk 00:18:46]} {[%emt 00:02:37]} Nd5
{[%clk 00:41:49]} {[%emt 00:05:42]} 23. Nxd5 {[%clk 00:18:55]} {[%emt
00:00:21]} Rxd5 {[%clk 00:42:14]} {[%emt 00:00:04]} 24. c4 {[%clk 00:17:04]}
{[%emt 00:02:21]} Rd4 {[%clk 00:42:13]} {[%emt 00:00:30]} 25. bxc5 {[%clk
00:17:03]} {[%emt 00:00:32]} Rxb1 {[%clk 00:41:54]} {[%emt 00:00:49]} 26. Rxb1
{[%clk 00:17:28]} {[%emt 00:00:05]} Qxc5 {[%clk 00:42:07]} {[%emt 00:00:17]} 27.
Rb8+ {[%clk 00:17:45]} {[%emt 00:00:13]} Bf8 {[%clk 00:42:25]} {[%emt
00:00:12]} 28. Rxf8+ {[%clk 00:18:03]} {[%emt 00:00:13]} 1-0

[Event "TOP 12F 2021"]
[Site "RENNES, France"]
[Date "2021.08.27"]
[Round "2.5"]
[White "Seite, Yamina"]
[Black "Guichard, Pauline"]
[Result "0-1"]
[TimeControl "1H30 + 30 sec/coup"]
[WhiteElo "1870"]
[BlackElo "2414"]

1. e4 {[%clk 01:30:58]} {[%emt 00:00:02]} e5 {[%clk 01:27:17]} {[%emt
00:03:43]} 2. Nf3 {[%clk 01:31:17]} {[%emt 00:00:11]} Nc6 {[%clk 01:27:40]}
{[%emt 00:00:06]} 3. Bb5 {[%clk 01:31:29]} {[%emt 00:00:18]} Nge7 {[%clk
01:27:47]} {[%emt 00:00:23]} 4. d3 {[%clk 01:30:54]} {[%emt 00:01:05]} g6
{[%clk 01:23:01]} {[%emt 00:05:15]} 5. Nbd2 {[%clk 01:28:27]} {[%emt 00:02:57]}
Bg7 {[%clk 01:23:04]} {[%emt 00:00:27]} 6. c3 {[%clk 01:28:06]} {[%emt
00:00:51]} O-O {[%clk 01:22:08]} {[%emt 00:01:26]} 7. Nf1 {[%clk 01:21:51]}
{[%emt 00:06:46]} a6 {[%clk 01:19:28]} {[%emt 00:03:09]} 8. Ba4 {[%clk
01:20:55]} {[%emt 00:01:26]} b5 {[%clk 01:18:57]} {[%emt 00:01:01]} 9. Bc2
{[%clk 01:20:41]} {[%emt 00:00:43]} d5 {[%clk 01:13:55]} {[%emt 00:05:33]} 10.
Bg5 {[%clk 01:14:46]} {[%emt 00:06:26]} h6 {[%clk 01:11:31]} {[%emt 00:02:54]}
11. Bh4 {[%clk 01:13:15]} {[%emt 00:02:00]} Be6 {[%clk 01:11:07]} {[%emt
00:00:53]} 12. h3 {[%clk 01:06:26]} {[%emt 00:07:20]} Qd7 {[%clk 01:01:55]}
{[%emt 00:09:42]} 13. N1h2 {[%clk 01:01:59]} {[%emt 00:04:58]} f5 {[%clk
00:59:15]} {[%emt 00:03:09]} 14. Bxe7 {[%clk 00:48:41]} {[%emt 00:13:48]} Nxe7
{[%clk 00:55:29]} {[%emt 00:04:16]} 15. Qe2 {[%clk 00:42:20]} {[%emt 00:06:52]}
Nc6 {[%clk 00:53:11]} {[%emt 00:02:49]} 16. exf5 {[%clk 00:32:11]} {[%emt
00:10:39]} gxf5 {[%clk 00:51:48]} {[%emt 00:01:52]} 17. O-O {[%clk 00:28:05]}
{[%emt 00:04:36]} Bf6 {[%clk 00:49:42]} {[%emt 00:02:36]} 18. Rad1 {[%clk
00:20:57]} {[%emt 00:07:38]} Kh8 {[%clk 00:46:45]} {[%emt 00:03:27]} 19. Rfe1
{[%clk 00:17:03]} {[%emt 00:04:24]} Rae8 {[%clk 00:46:37]} {[%emt 00:00:38]} 20.
d4 {[%clk 00:07:53]} {[%emt 00:09:41]} e4 {[%clk 00:46:17]} {[%emt 00:00:49]}
21. Ne5 {[%clk 00:08:06]} {[%emt 00:00:18]} Nxe5 {[%clk 00:44:55]} {[%emt
00:01:52]} 22. dxe5 {[%clk 00:08:30]} {[%emt 00:00:06]} Bxe5 {[%clk 00:45:14]}
{[%emt 00:00:10]} 23. Nf1 {[%clk 00:07:01]} {[%emt 00:01:59]} Rg8 {[%clk
00:44:18]} {[%emt 00:01:25]} 24. Ne3 {[%clk 00:05:36]} {[%emt 00:01:55]} Qg7
{[%clk 00:43:24]} {[%emt 00:01:24]} 25. f3 {[%clk 00:03:49]} {[%emt 00:02:17]}
Qg3 {[%clk 00:41:59]} {[%emt 00:01:55]} 0-1

[Event "TOP 12F 2021"]
[Site "RENNES, France"]
[Date "2021.08.27"]
[Round "2.7"]
[White "Broly, Mathilde"]
[Black "Le Marec, Laura"]
[Result "1-0"]
[TimeControl "1H30 + 30 sec/coup"]
[WhiteElo "2154"]
[BlackElo "2118"]

1. e4 {[%clk 01:30:53]} {[%emt 00:00:06]} c5 {[%clk 01:30:49]} {[%emt
00:00:12]} 2. Nf3 {[%clk 01:30:36]} {[%emt 00:00:47]} a6 {[%clk 01:31:05]}
{[%emt 00:00:14]} 3. c4 {[%clk 01:27:07]} {[%emt 00:03:58]} e6 {[%clk
01:31:28]} {[%emt 00:00:08]} 4. d4 {[%clk 01:26:46]} {[%emt 00:00:51]} cxd4
{[%clk 01:30:55]} {[%emt 00:01:03]} 5. Nxd4 {[%clk 01:26:27]} {[%emt 00:00:49]}
Nf6 {[%clk 01:28:57]} {[%emt 00:02:28]} 6. Nc3 {[%clk 01:26:44]} {[%emt
00:00:13]} Qc7 {[%clk 01:29:06]} {[%emt 00:00:21]} 7. a3 {[%clk 01:24:50]}
{[%emt 00:02:25]} b6 {[%clk 01:28:17]} {[%emt 00:01:19]} 8. Be3 {[%clk
01:23:06]} {[%emt 00:02:13]} Bb7 {[%clk 01:27:02]} {[%emt 00:01:46]} 9. f3
{[%clk 01:18:12]} {[%emt 00:05:24]} d6 {[%clk 01:26:47]} {[%emt 00:00:44]} 10.
Be2 {[%clk 01:17:16]} {[%emt 00:01:26]} Nbd7 {[%clk 01:26:00]} {[%emt
00:01:17]} 11. Rc1 {[%clk 01:14:41]} {[%emt 00:03:05]} Be7 {[%clk 01:22:52]}
{[%emt 00:03:38]} 12. b4 {[%clk 01:09:56]} {[%emt 00:05:15]} O-O {[%clk
01:16:20]} {[%emt 00:07:02]} 13. O-O {[%clk 01:09:39]} {[%emt 00:00:47]} Rfe8
{[%clk 01:01:04]} {[%emt 00:15:47]} 14. Qe1 {[%clk 00:54:26]} {[%emt 00:15:42]}
Rac8 {[%clk 00:57:28]} {[%emt 00:04:05]} 15. Qf2 {[%clk 00:53:03]} {[%emt
00:01:53]} Qb8 {[%clk 00:55:14]} {[%emt 00:02:45]} 16. Na4 {[%clk 00:47:57]}
{[%emt 00:05:36]} d5 {[%clk 00:38:12]} {[%emt 00:17:32]} 17. exd5 {[%clk
00:31:35]} {[%emt 00:16:52]} exd5 {[%clk 00:28:12]} {[%emt 00:10:30]} 18. Nf5
{[%clk 00:26:52]} {[%emt 00:05:13]} Qe5 {[%clk 00:23:04]} {[%emt 00:05:38]} 19.
Ng3 {[%clk 00:26:10]} {[%emt 00:01:13]} dxc4 {[%clk 00:14:30]} {[%emt
00:09:04]} 20. Bd4 {[%clk 00:21:05]} {[%emt 00:05:34]} Qe6 {[%clk 00:13:05]}
{[%emt 00:01:55]} 21. Nxb6 {[%clk 00:19:26]} {[%emt 00:02:09]} Nxb6 {[%clk
00:13:25]} {[%emt 00:00:11]} 22. Bxb6 {[%clk 00:19:48]} {[%emt 00:00:08]} Nd5
{[%clk 00:11:14]} {[%emt 00:02:40]} 23. Bd4 {[%clk 00:19:26]} {[%emt 00:00:51]}
Nf4 {[%clk 00:03:02]} {[%emt 00:08:43]} 24. Rfe1 {[%clk 00:18:32]} {[%emt
00:01:24]} Qd5 {[%clk 00:02:50]} {[%emt 00:00:42]} 25. Rcd1 {[%clk 00:13:51]}
{[%emt 00:05:11]} Qg5 {[%clk 00:02:40]} {[%emt 00:00:41]} 26. Bf1 {[%clk
00:13:11]} {[%emt 00:01:09]} h5 {[%clk 00:02:21]} {[%emt 00:00:49]} 27. Kh1
{[%clk 00:08:59]} {[%emt 00:04:42]} h4 {[%clk 00:00:51]} {[%emt 00:02:00]} 28.
Ne4 {[%clk 00:08:48]} {[%emt 00:00:41]} Qg6 {[%clk 00:00:58]} {[%emt 00:00:23]}
29. Qd2 {[%clk 00:06:41]} {[%emt 00:02:36]} Nd5 {[%clk 00:00:46]} {[%emt
00:00:43]} 30. Qa2 {[%clk 00:05:21]} {[%emt 00:01:50]} Qh5 {[%clk 00:00:46]}
{[%emt 00:00:31]} 31. Bxc4 {[%clk 00:04:34]} {[%emt 00:01:18]} Nf4 {[%clk
00:01:08]} {[%emt 00:00:08]} 32. Bf1 {[%clk 00:03:11]} {[%emt 00:01:53]} h3
{[%clk 00:01:12]} {[%emt 00:00:26]} 33. g4 {[%clk 00:03:08]} {[%emt 00:00:32]}
Qg6 {[%clk 00:01:09]} {[%emt 00:00:34]} 34. Qf2 {[%clk 00:02:49]} {[%emt
00:00:48]} Bd5 {[%clk 00:01:08]} {[%emt 00:00:31]} 35. Be5 {[%clk 00:01:23]}
{[%emt 00:01:56]} Bxe4 {[%clk 00:00:54]} {[%emt 00:00:44]} 36. Rxe4 {[%clk
00:01:28]} {[%emt 00:00:25]} Ne6 {[%clk 00:01:05]} {[%emt 00:00:20]} 37. Re2
{[%clk 00:01:13]} {[%emt 00:00:45]} Red8 {[%clk 00:00:49]} {[%emt 00:00:45]} 38.
Rxd8+ {[%clk 00:00:51]} {[%emt 00:00:52]} Rxd8 {[%clk 00:01:16]} {[%emt
00:00:04]} 39. Bxh3 {[%clk 00:00:46]} {[%emt 00:00:34]} Ng5 {[%clk 00:01:16]}
{[%emt 00:00:31]} 40. Bf1 {[%clk 00:00:59]} {[%emt 00:00:17]} Qc6 {[%clk
00:01:21]} {[%emt 00:00:25]} 41. Kg2 {[%clk 00:00:59]} {[%emt 00:00:30]} Rd3
{[%clk 00:01:30]} {[%emt 00:00:21]} 42. Rc2 {[%clk 00:00:33]} {[%emt 00:00:56]}
Qxf3+ {[%clk 00:01:18]} {[%emt 00:00:42]} 43. Qxf3 {[%clk 00:00:58]} {[%emt
00:00:05]} Rxf3 {[%clk 00:01:43]} {[%emt 00:00:05]} 44. h4 {[%clk 00:01:22]}
{[%emt 00:00:07]} Rxa3 {[%clk 00:00:47]} {[%emt 00:01:27]} 45. hxg5 {[%clk
00:01:46]} {[%emt 00:00:05]} Bxb4 {[%clk 00:00:48]} {[%emt 00:00:30]} 46. Bc4
{[%clk 00:00:41]} {[%emt 00:01:34]} Kf8 {[%clk 00:00:32]} {[%emt 00:00:46]} 47.
Rf2 {[%clk 00:00:53]} {[%emt 00:00:18]} f6 {[%clk 00:00:31]} {[%emt 00:00:31]}
48. gxf6 {[%clk 00:01:02]} {[%emt 00:00:20]} gxf6 {[%clk 00:00:53]} {[%emt
00:00:09]} 49. Rxf6+ {[%clk 00:01:22]} {[%emt 00:00:10]} Ke7 {[%clk 00:00:59]}
{[%emt 00:00:24]} 50. Rxa6 {[%clk 00:01:29]} {[%emt 00:00:23]} Re3 {[%clk
00:00:57]} {[%emt 00:00:31]} 51. Bf6+ {[%clk 00:01:26]} {[%emt 00:00:33]} Kd7
{[%clk 00:00:52]} {[%emt 00:00:35]} 52. g5 {[%clk 00:01:48]} {[%emt 00:00:07]}
Be1 {[%clk 00:00:31]} {[%emt 00:00:52]} 53. Bd5 {[%clk 00:01:25]} {[%emt
00:00:53]} Rd3 {[%clk 00:00:35]} {[%emt 00:00:26]} 54. Be6+ {[%clk 00:01:43]}
{[%emt 00:00:12]} Kc7 {[%clk 00:00:46]} {[%emt 00:00:20]} 55. Ra4 {[%clk
00:01:55]} {[%emt 00:00:17]} Kd6 {[%clk 00:00:49]} {[%emt 00:00:27]} 56. Bf5
{[%clk 00:01:20]} {[%emt 00:01:05]} Rg3+ {[%clk 00:00:34]} {[%emt 00:00:46]} 57.
Kf1 {[%clk 00:01:43]} {[%emt 00:00:06]} Rf3+ {[%clk 00:00:57]} {[%emt
00:00:07]} 58. Kxe1 {[%clk 00:02:06]} {[%emt 00:00:07]} Rxf5 {[%clk 00:01:23]}
{[%emt 00:00:04]} 59. Ke2 {[%clk 00:02:16]} {[%emt 00:00:19]} Ke6 {[%clk
00:01:38]} {[%emt 00:00:16]} 60. Rg4 {[%clk 00:01:56]} {[%emt 00:00:50]} Kf7
{[%clk 00:00:59]} {[%emt 00:01:10]} 61. g6+ {[%clk 00:01:01]} {[%emt 00:01:25]}
Kg8 {[%clk 00:01:25]} {[%emt 00:00:04]} 62. Bd4 {[%clk 00:01:22]} {[%emt
00:00:09]} Rf8 {[%clk 00:01:30]} {[%emt 00:00:25]} 63. Rh4 {[%clk 00:01:30]}
{[%emt 00:00:21]} Re8+ {[%clk 00:01:45]} {[%emt 00:00:15]} 64. Kd3 {[%clk
00:01:52]} {[%emt 00:00:08]} 1-0